[Event "Titled Tuesday Blitz March 01 Early 2022"]
[White "Sikorova, Olga"]
[Black "Bongo Akanga Ndjila, Barthelemy"]
[WhiteFideId "307033"]
[BlackFideId "10609431"]
[WhiteElo "2187"]
[BlackElo "1803"]
[Result "1-0"]
[Round "06"]
[TimeControl "180+1"]
[Date "2022.03.01"]
[WhiteClock "0:00:20"]
[BlackClock "0:00:05"]

1. c4 {[%clk 0:03:00]}  d6 {[%clk 0:02:56]} 2. g3 {[%clk 0:03:00]}  g6 {[%clk 0:02:57]} 3. Bg2 {[%clk 0:03:01]}  Bg7 {[%clk 0:02:57]} 4. Nc3 {[%clk 0:03:02]}  Nf6 {[%clk 0:02:57]} 5. d3 {[%clk 0:03:01]}  c5 {[%clk 0:02:55]} 6. e4 {[%clk 0:03:02]}  Nc6 {[%clk 0:02:54]} 7. Nge2 {[%clk 0:03:01]}  O-O {[%clk 0:02:52]} 8. O-O {[%clk 0:03:02]}  a6 {[%clk 0:02:52]} 9. h3 {[%clk 0:03:02]}  Rb8 {[%clk 0:02:51]} 10. a4 {[%clk 0:03:02]}  Nb4 {[%clk 0:02:49]} 11. Be3 {[%clk 0:02:59]}  Bd7 {[%clk 0:02:49]} 12. f4 {[%clk 0:02:56]}  b5 {[%clk 0:02:48]} 13. axb5 {[%clk 0:02:55]}  axb5 {[%clk 0:02:48]} 14. cxb5 {[%clk 0:02:54]}  Bxb5 {[%clk 0:02:48]} 15. Nxb5 {[%clk 0:02:55]}  Rxb5 {[%clk 0:02:49]} 16. Nc3 {[%clk 0:02:55]}  Rb8 {[%clk 0:02:47]} 17. e5 {[%clk 0:02:49]}  dxe5 {[%clk 0:02:43]} 18. fxe5 {[%clk 0:02:49]}  Nfd5 {[%clk 0:02:44]} 19. Bxc5 {[%clk 0:02:44]}  Bxe5 {[%clk 0:02:36]} 20. Nxd5 {[%clk 0:02:26]}  Nxd5 {[%clk 0:02:34]} 21. Qf3 {[%clk 0:02:26]}  Nf6 {[%clk 0:02:24]} 22. Kh2 {[%clk 0:02:20]}  Rxb2 {[%clk 0:02:20]} 23. Ra7 {[%clk 0:02:18]}  Bd6 {[%clk 0:02:13]} 24. Bd4 {[%clk 0:02:17]}  Rd2 {[%clk 0:01:44]} 25. Bc3 {[%clk 0:02:08]}  Rc2 {[%clk 0:01:26]} 26. Bxf6 {[%clk 0:01:57]}  exf6 {[%clk 0:01:25]} 27. d4 {[%clk 0:01:55]}  f5 {[%clk 0:01:17]} 28. Rd1 {[%clk 0:01:42]}  h5 {[%clk 0:01:16]} 29. Qb3 {[%clk 0:01:40]}  Rf2 {[%clk 0:00:55]} 30. Qe3 {[%clk 0:01:33]}  Rb2 {[%clk 0:00:51]} 31. Kh1 {[%clk 0:01:31]}  Qb8 {[%clk 0:00:45]} 32. Ra8 {[%clk 0:01:24]}  Qc7 {[%clk 0:00:30]} 33. Rxf8+ {[%clk 0:01:23]}  Kxf8 {[%clk 0:00:30]} 34. Qh6+ {[%clk 0:01:22]}  Kg8 {[%clk 0:00:29]} 35. Re1 {[%clk 0:01:20]}  Bf8 {[%clk 0:00:20]} 36. Re8 {[%clk 0:01:17]}  Qd6 {[%clk 0:00:20]} 37. Bd5 {[%clk 0:01:06]}  Rb5 {[%clk 0:00:17]} 38. Rxf8+ {[%clk 0:00:41]}  Qxf8 {[%clk 0:00:15]} 39. Qxg6+ {[%clk 0:00:42]}  Kh8 {[%clk 0:00:14]} 40. Qxh5+ {[%clk 0:00:40]}  Kg7 {[%clk 0:00:14]} 41. Qg5+ {[%clk 0:00:40]}  Kh8 {[%clk 0:00:14]} 42. Qh5+ {[%clk 0:00:31]}  Kg7 {[%clk 0:00:11]} 43. Qxf5 {[%clk 0:00:30]}  Qe7 {[%clk 0:00:06]} 44. Qg4+ {[%clk 0:00:19]}  Kf8 {[%clk 0:00:06]} 45. Qc8+ {[%clk 0:00:18]}  Kg7 {[%clk 0:00:07]} 46. Qg4+ {[%clk 0:00:18]}  Kf8 {[%clk 0:00:07]} 47. Qc8+ {[%clk 0:00:18]}  Qe8 {[%clk 0:00:06]} 48. Qxe8+ {[%clk 0:00:18]}  Kxe8 {[%clk 0:00:06]} 49. Bc6+ {[%clk 0:00:19]}  Ke7 {[%clk 0:00:06]} 50. Bxb5 {[%clk 0:00:19]}  Kd6 {[%clk 0:00:05]} 51. Bc4 {[%clk 0:00:20]} 1-0


[Site "https://www.chess.com"]

[Event "Titled Tuesday Blitz March 01 Early 2022"]
[White "Silva, Miguel Antonio Neto"]
[Black "Mosadeghpour, Masoud"]
[WhiteFideId "1911929"]
[BlackFideId "12519278"]
[WhiteElo "2204"]
[BlackElo "2395"]
[Result "0-1"]
[Round "06"]
[TimeControl "180+1"]
[Date "2022.03.01"]
[WhiteClock "0:02:04"]
[BlackClock "0:01:58"]

1. Nf3 {[%clk 0:02:59]}  Nf6 {[%clk 0:03:00]} 2. c4 {[%clk 0:02:59]}  e6 {[%clk 0:03:00]} 3. g3 {[%clk 0:02:57]}  d5 {[%clk 0:03:01]} 4. d4 {[%clk 0:02:57]}  Bb4+ {[%clk 0:03:00]} 5. Bd2 {[%clk 0:02:57]}  Be7 {[%clk 0:02:59]} 6. Bg2 {[%clk 0:02:56]}  O-O {[%clk 0:03:00]} 7. O-O {[%clk 0:02:57]}  Nbd7 {[%clk 0:03:01]} 8. Bf4 {[%clk 0:02:56]}  dxc4 {[%clk 0:02:59]} 9. Qc2 {[%clk 0:02:55]}  c5 {[%clk 0:03:00]} 10. dxc5 {[%clk 0:02:54]}  Nxc5 {[%clk 0:02:58]} 11. Rd1 {[%clk 0:02:53]}  Qe8 {[%clk 0:02:53]} 12. Qxc4 {[%clk 0:02:52]}  Bd7 {[%clk 0:02:54]} 13. Ne5 {[%clk 0:02:51]}  Bb5 {[%clk 0:02:54]} 14. Qc2 {[%clk 0:02:51]}  Rc8 {[%clk 0:02:54]} 15. Nc3 {[%clk 0:02:51]}  Na4 {[%clk 0:02:53]} 16. Bxb7 {[%clk 0:02:45]}  Nxc3 {[%clk 0:02:50]} 17. bxc3 {[%clk 0:02:42]}  Ba4 {[%clk 0:02:47]} 18. Qd3 {[%clk 0:02:34]}  Rd8 {[%clk 0:02:44]} 19. Qa6 {[%clk 0:02:17]}  Rxd1+ {[%clk 0:02:38]} 20. Rxd1 {[%clk 0:02:16]}  Bxd1 {[%clk 0:02:39]} 21. Bc6 {[%clk 0:02:11]}  Qc8 {[%clk 0:01:58]} 22. Qxa7 {[%clk 0:02:04]}  Bd6 {[%clk 0:01:58]} 0-1


[Site "https://www.chess.com"]

[Event "Titled Tuesday Blitz March 01 Early 2022"]
[White "Sliwicki, Damian"]
[Black "Kohler, Aran"]
[WhiteFideId "1127128"]
[BlackFideId "1002856"]
[WhiteElo "2084"]
[BlackElo "2257"]
[Result "1-0"]
[Round "06"]
[TimeControl "180+1"]
[Date "2022.03.01"]
[WhiteClock "0:00:21"]
[BlackClock "0:00:13"]

1. e4 {[%clk 0:03:00]}  c5 {[%clk 0:02:59]} 2. Nf3 {[%clk 0:02:59]}  d6 {[%clk 0:02:59]} 3. d4 {[%clk 0:02:56]}  cxd4 {[%clk 0:02:58]} 4. Nxd4 {[%clk 0:02:53]}  Nf6 {[%clk 0:02:58]} 5. f3 {[%clk 0:02:50]}  a6 {[%clk 0:02:56]} 6. c4 {[%clk 0:02:49]}  e6 {[%clk 0:02:50]} 7. Nc3 {[%clk 0:02:48]}  Be7 {[%clk 0:02:47]} 8. Be3 {[%clk 0:02:48]}  O-O {[%clk 0:02:46]} 9. Be2 {[%clk 0:02:48]}  d5 {[%clk 0:02:46]} 10. cxd5 {[%clk 0:02:25]}  exd5 {[%clk 0:02:46]} 11. e5 {[%clk 0:02:20]}  Nfd7 {[%clk 0:02:41]} 12. f4 {[%clk 0:02:05]}  Nb6 {[%clk 0:02:27]} 13. O-O {[%clk 0:02:05]}  Nc6 {[%clk 0:02:15]} 14. Kh1 {[%clk 0:02:00]}  Nxd4 {[%clk 0:02:04]} 15. Bxd4 {[%clk 0:02:01]}  Bf5 {[%clk 0:01:58]} 16. Bf3 {[%clk 0:01:46]}  Nc4 {[%clk 0:01:43]} 17. Bxd5 {[%clk 0:01:41]}  Nxb2 {[%clk 0:01:39]} 18. Qb3 {[%clk 0:01:38]}  Nd3 {[%clk 0:01:33]} 19. Rad1 {[%clk 0:01:29]}  b5 {[%clk 0:01:21]} 20. Bxa8 {[%clk 0:01:26]}  Qxa8 {[%clk 0:01:20]} 21. Nd5 {[%clk 0:01:25]}  Bh4 {[%clk 0:01:17]} 22. Rf3 {[%clk 0:01:01]}  Be4 {[%clk 0:00:52]} 23. Rfxd3 {[%clk 0:00:51]}  Bxd5 {[%clk 0:00:51]} 24. Qb2 {[%clk 0:00:49]}  Be4 {[%clk 0:00:49]} 25. Re3 {[%clk 0:00:41]}  Rd8 {[%clk 0:00:46]} 26. Qe2 {[%clk 0:00:29]}  Bb7 {[%clk 0:00:30]} 27. Qg4 {[%clk 0:00:29]}  Be7 {[%clk 0:00:27]} 28. e6 {[%clk 0:00:20]}  f6 {[%clk 0:00:26]} 29. Rg3 {[%clk 0:00:20]}  g6 {[%clk 0:00:25]} 30. f5 {[%clk 0:00:20]}  g5 {[%clk 0:00:19]} 31. h4 {[%clk 0:00:20]}  h6 {[%clk 0:00:18]} 32. hxg5 {[%clk 0:00:20]}  hxg5 {[%clk 0:00:18]} 33. Qh5 {[%clk 0:00:21]}  Be4 {[%clk 0:00:15]} 34. Qg6+ {[%clk 0:00:22]}  Kf8 {[%clk 0:00:15]} 35. Rh3 {[%clk 0:00:21]}  Bxg2+ {[%clk 0:00:13]} 36. Kh2 {[%clk 0:00:21]}  Bxh3 {[%clk 0:00:13]} 37. Qf7# {[%clk 0:00:21]} 1-0


[Site "https://www.chess.com"]

[Event "Titled Tuesday Blitz March 01 Early 2022"]
[White "Suleymanli, Aydin"]
[Black "Bashirli, Saadat"]
[WhiteFideId "13413937"]
[BlackFideId "13429990"]
[WhiteElo "2529"]
[BlackElo "1173"]
[Result "1-0"]
[Round "06"]
[TimeControl "180+1"]
[Date "2022.03.01"]
[WhiteClock "0:01:12"]
[BlackClock "0:00:53"]

1. e4 {[%clk 0:03:00]}  c5 {[%clk 0:02:51]} 2. Nf3 {[%clk 0:03:00]}  g6 {[%clk 0:02:49]} 3. h4 {[%clk 0:02:57]}  Bg7 {[%clk 0:02:48]} 4. h5 {[%clk 0:02:58]}  e6 {[%clk 0:02:46]} 5. c3 {[%clk 0:02:56]}  Nc6 {[%clk 0:02:45]} 6. Bb5 {[%clk 0:02:46]}  Nge7 {[%clk 0:02:45]} 7. h6 {[%clk 0:02:44]}  Bf6 {[%clk 0:02:43]} 8. d4 {[%clk 0:02:41]}  cxd4 {[%clk 0:02:42]} 9. cxd4 {[%clk 0:02:42]}  d6 {[%clk 0:02:22]} 10. g4 {[%clk 0:02:33]}  Qa5+ {[%clk 0:02:20]} 11. Nc3 {[%clk 0:02:32]}  Ng8 {[%clk 0:02:08]} 12. g5 {[%clk 0:02:30]}  Be7 {[%clk 0:02:07]} 13. d5 {[%clk 0:02:15]}  exd5 {[%clk 0:02:07]} 14. exd5 {[%clk 0:02:14]}  a6 {[%clk 0:02:07]} 15. Qd4 {[%clk 0:02:08]}  f6 {[%clk 0:01:56]} 16. b4 {[%clk 0:01:45]}  Qd8 {[%clk 0:01:50]} 17. Ba4 {[%clk 0:01:43]}  b5 {[%clk 0:01:49]} 18. dxc6 {[%clk 0:01:44]}  bxa4 {[%clk 0:01:48]} 19. Nd5 {[%clk 0:01:42]}  Be6 {[%clk 0:01:42]} 20. Bf4 {[%clk 0:01:41]}  Bxd5 {[%clk 0:01:19]} 21. Qxd5 {[%clk 0:01:40]}  fxg5 {[%clk 0:01:17]} 22. Nxg5 {[%clk 0:01:27]}  Bxg5 {[%clk 0:01:16]} 23. Bxg5 {[%clk 0:01:27]}  Qc7 {[%clk 0:01:16]} 24. Kd2 {[%clk 0:01:18]}  Ne7 {[%clk 0:01:13]} 25. Rae1 {[%clk 0:01:17]}  Ra7 {[%clk 0:00:58]} 26. Rxe7+ {[%clk 0:01:12]}  Qxe7 {[%clk 0:00:57]} 27. Bxe7 {[%clk 0:01:13]}  Rxe7 {[%clk 0:00:57]} 28. Re1 {[%clk 0:01:13]}  Rxe1 {[%clk 0:00:56]} 29. Kxe1 {[%clk 0:01:13]}  Ke7 {[%clk 0:00:56]} 30. Qe4+ {[%clk 0:01:14]}  Kd8 {[%clk 0:00:55]} 31. Qd4 {[%clk 0:01:14]}  Re8+ {[%clk 0:00:55]} 32. Kd2 {[%clk 0:01:14]}  Kc7 {[%clk 0:00:56]} 33. Qa7+ {[%clk 0:01:13]}  Kxc6 {[%clk 0:00:56]} 34. Qxa6+ {[%clk 0:01:13]}  Kc7 {[%clk 0:00:56]} 35. Qa7+ {[%clk 0:01:13]}  Kd8 {[%clk 0:00:56]} 36. Qxh7 {[%clk 0:01:13]}  Rf8 {[%clk 0:00:55]} 37. Ke2 {[%clk 0:01:12]}  Re8+ {[%clk 0:00:55]} 38. Kf1 {[%clk 0:01:12]}  g5 {[%clk 0:00:54]} 39. Qg7 {[%clk 0:01:12]}  Re5 {[%clk 0:00:53]} 40. h7 {[%clk 0:01:12]} 1-0


[Site "https://www.chess.com"]

[Event "Titled Tuesday Blitz March 01 Early 2022"]
[White "Szpar, Milosz"]
[Black "Santos Flores, Alberto"]
[WhiteFideId "1184989"]
[BlackFideId "3601234"]
[WhiteElo "2447"]
[BlackElo "2293"]
[Result "1-0"]
[Round "06"]
[TimeControl "180+1"]
[Date "2022.03.01"]
[WhiteClock "0:01:37"]
[BlackClock "0:00:17"]

1. e4 {[%clk 0:03:00]}  c5 {[%clk 0:02:58]} 2. Nf3 {[%clk 0:03:00]}  g6 {[%clk 0:02:57]} 3. c3 {[%clk 0:03:00]}  Bg7 {[%clk 0:02:57]} 4. d4 {[%clk 0:03:00]}  cxd4 {[%clk 0:02:57]} 5. cxd4 {[%clk 0:03:01]}  d5 {[%clk 0:02:57]} 6. e5 {[%clk 0:03:02]}  Bg4 {[%clk 0:02:56]} 7. Bb5+ {[%clk 0:03:01]}  Nc6 {[%clk 0:02:56]} 8. Nbd2 {[%clk 0:02:56]}  e6 {[%clk 0:02:55]} 9. Bxc6+ {[%clk 0:02:52]}  bxc6 {[%clk 0:02:56]} 10. h3 {[%clk 0:02:52]}  Bxf3 {[%clk 0:02:55]} 11. Nxf3 {[%clk 0:02:53]}  Ne7 {[%clk 0:02:54]} 12. O-O {[%clk 0:02:49]}  Qb6 {[%clk 0:02:51]} 13. b3 {[%clk 0:02:48]}  c5 {[%clk 0:02:50]} 14. Ba3 {[%clk 0:02:43]}  cxd4 {[%clk 0:02:48]} 15. Rc1 {[%clk 0:02:42]}  Nc6 {[%clk 0:02:39]} 16. Re1 {[%clk 0:02:31]}  Bf8 {[%clk 0:02:38]} 17. Bb2 {[%clk 0:02:31]}  Bg7 {[%clk 0:02:33]} 18. Nxd4 {[%clk 0:02:24]}  Nxd4 {[%clk 0:02:04]} 19. Bxd4 {[%clk 0:02:25]}  Qa6 {[%clk 0:02:03]} 20. Bc5 {[%clk 0:02:22]}  Bf8 {[%clk 0:02:01]} 21. Bxf8 {[%clk 0:02:21]}  Kxf8 {[%clk 0:02:01]} 22. Rc7 {[%clk 0:02:22]}  Kg7 {[%clk 0:01:58]} 23. Qf3 {[%clk 0:02:20]}  Rhf8 {[%clk 0:01:58]} 24. Qf6+ {[%clk 0:02:20]}  Kg8 {[%clk 0:01:57]} 25. Re3 {[%clk 0:02:21]}  Rac8 {[%clk 0:01:53]} 26. Re7 {[%clk 0:02:10]}  Qa5 {[%clk 0:00:43]} 27. h4 {[%clk 0:01:58]}  Rc3 {[%clk 0:00:26]} 28. h5 {[%clk 0:01:55]}  Rxe3 {[%clk 0:00:25]} 29. h6 {[%clk 0:01:38]}  Qe1+ {[%clk 0:00:21]} 30. Kh2 {[%clk 0:01:38]}  Rh3+ {[%clk 0:00:17]} 31. gxh3 {[%clk 0:01:37]} 1-0


[Site "https://www.chess.com"]

[Event "Titled Tuesday Blitz March 01 Early 2022"]
[White "Tarhan, Adar"]
[Black "Chigaev, Maksim"]
[WhiteFideId "34544712"]
[BlackFideId "4108116"]
[WhiteElo "1802"]
[BlackElo "2502"]
[Result "0-1"]
[Round "06"]
[TimeControl "180+1"]
[Date "2022.03.01"]
[WhiteClock "0:02:08"]
[BlackClock "0:02:19"]

1. Nf3 {[%clk 0:03:00]}  Nf6 {[%clk 0:02:59]} 2. b3 {[%clk 0:03:01]}  g6 {[%clk 0:02:59]} 3. Bb2 {[%clk 0:03:01]}  Bg7 {[%clk 0:03:00]} 4. e3 {[%clk 0:03:02]}  O-O {[%clk 0:03:01]} 5. Be2 {[%clk 0:03:00]}  b6 {[%clk 0:03:00]} 6. d4 {[%clk 0:03:00]}  Bb7 {[%clk 0:03:01]} 7. Nbd2 {[%clk 0:03:00]}  c5 {[%clk 0:03:01]} 8. c4 {[%clk 0:02:59]}  cxd4 {[%clk 0:03:01]} 9. exd4 {[%clk 0:02:58]}  d5 {[%clk 0:03:01]} 10. O-O {[%clk 0:02:58]}  Nc6 {[%clk 0:03:00]} 11. Rc1 {[%clk 0:02:57]}  Rc8 {[%clk 0:03:01]} 12. Qc2 {[%clk 0:02:56]}  Re8 {[%clk 0:03:00]} 13. Rfd1 {[%clk 0:02:55]}  e6 {[%clk 0:03:01]} 14. Qb1 {[%clk 0:02:55]}  Ne7 {[%clk 0:02:59]} 15. Ne5 {[%clk 0:02:51]}  Nc6 {[%clk 0:02:54]} 16. Ndf3 {[%clk 0:02:49]}  Ne4 {[%clk 0:02:51]} 17. Bd3 {[%clk 0:02:45]}  Ng5 {[%clk 0:02:36]} 18. cxd5 {[%clk 0:02:30]}  Nxe5 {[%clk 0:02:29]} 19. Rxc8 {[%clk 0:02:13]}  Nexf3+ {[%clk 0:02:28]} 20. gxf3 {[%clk 0:02:13]}  Qxc8 {[%clk 0:02:26]} 21. dxe6 {[%clk 0:02:12]}  Nxf3+ {[%clk 0:02:22]} 22. Kf1 {[%clk 0:02:11]}  Nxh2+ {[%clk 0:02:19]} 23. Kg1 {[%clk 0:02:11]}  Nf3+ {[%clk 0:02:19]} 24. Kf1 {[%clk 0:02:11]}  Qxe6 {[%clk 0:02:19]} 25. d5 {[%clk 0:02:08]}  Qh3# {[%clk 0:02:19]} 0-1


[Site "https://www.chess.com"]

[Event "Titled Tuesday Blitz March 01 Early 2022"]
[White "Tari, Aryan"]
[Black "Seo, Jung Min"]
[WhiteFideId "1510045"]
[BlackFideId "1734687"]
[WhiteElo "2567"]
[BlackElo "2401"]
[Result "1-0"]
[Round "06"]
[TimeControl "180+1"]
[Date "2022.03.01"]
[WhiteClock "0:00:13"]
[BlackClock "0:00:08"]

1. c4 {[%clk 0:03:00]}  e6 {[%clk 0:02:59]} 2. g3 {[%clk 0:02:55]}  d5 {[%clk 0:02:59]} 3. Bg2 {[%clk 0:02:55]}  Nf6 {[%clk 0:02:59]} 4. Nf3 {[%clk 0:02:50]}  Be7 {[%clk 0:02:59]} 5. b3 {[%clk 0:02:48]}  O-O {[%clk 0:02:58]} 6. Bb2 {[%clk 0:02:48]}  c6 {[%clk 0:02:51]} 7. O-O {[%clk 0:02:47]}  b6 {[%clk 0:02:51]} 8. e3 {[%clk 0:02:44]}  Bb7 {[%clk 0:02:51]} 9. Nc3 {[%clk 0:02:39]}  Nbd7 {[%clk 0:02:51]} 10. d4 {[%clk 0:02:38]}  Rc8 {[%clk 0:02:51]} 11. Qe2 {[%clk 0:02:35]}  Qc7 {[%clk 0:02:46]} 12. Rac1 {[%clk 0:02:32]}  Qb8 {[%clk 0:02:45]} 13. Rfd1 {[%clk 0:02:33]}  Rfe8 {[%clk 0:02:44]} 14. Ne5 {[%clk 0:02:26]}  Nxe5 {[%clk 0:02:44]} 15. dxe5 {[%clk 0:02:26]}  Nd7 {[%clk 0:02:43]} 16. f4 {[%clk 0:02:25]}  Red8 {[%clk 0:02:39]} 17. h4 {[%clk 0:02:21]}  Qa8 {[%clk 0:02:36]} 18. h5 {[%clk 0:02:21]}  Bf8 {[%clk 0:02:28]} 19. Qg4 {[%clk 0:02:18]}  dxc4 {[%clk 0:02:22]} 20. bxc4 {[%clk 0:02:15]}  c5 {[%clk 0:02:22]} 21. Bxb7 {[%clk 0:02:11]}  Qxb7 {[%clk 0:02:22]} 22. Nb5 {[%clk 0:01:54]}  Qe4 {[%clk 0:02:05]} 23. Qe2 {[%clk 0:01:50]}  a6 {[%clk 0:01:55]} 24. Nd6 {[%clk 0:01:50]}  Bxd6 {[%clk 0:01:55]} 25. Rxd6 {[%clk 0:01:51]}  Nf8 {[%clk 0:01:54]} 26. Rcd1 {[%clk 0:01:37]}  Rxd6 {[%clk 0:01:54]} 27. Rxd6 {[%clk 0:01:38]}  b5 {[%clk 0:01:50]} 28. Kf2 {[%clk 0:01:33]}  bxc4 {[%clk 0:01:45]} 29. Bc3 {[%clk 0:01:24]}  a5 {[%clk 0:01:37]} 30. Rd2 {[%clk 0:01:20]}  a4 {[%clk 0:01:32]} 31. Qf3 {[%clk 0:01:18]}  Qb1 {[%clk 0:01:29]} 32. Qd1 {[%clk 0:01:17]}  Qe4 {[%clk 0:01:25]} 33. Qxa4 {[%clk 0:01:12]}  Qh1 {[%clk 0:01:21]} 34. Qxc4 {[%clk 0:01:00]}  Qh2+ {[%clk 0:01:16]} 35. Kf3 {[%clk 0:01:00]}  Qh1+ {[%clk 0:01:11]} 36. Rg2 {[%clk 0:00:57]}  Qxh5+ {[%clk 0:01:09]} 37. Kf2 {[%clk 0:00:57]}  Qg4 {[%clk 0:01:02]} 38. Rg1 {[%clk 0:00:55]}  h5 {[%clk 0:01:02]} 39. a4 {[%clk 0:00:55]}  h4 {[%clk 0:00:58]} 40. a5 {[%clk 0:00:55]}  Ng6 {[%clk 0:00:48]} 41. a6 {[%clk 0:00:52]}  hxg3+ {[%clk 0:00:41]} 42. Rxg3 {[%clk 0:00:52]}  Qf5 {[%clk 0:00:42]} 43. Qa4 {[%clk 0:00:45]}  Qd3 {[%clk 0:00:37]} 44. e4 {[%clk 0:00:37]}  Qd8 {[%clk 0:00:28]} 45. f5 {[%clk 0:00:33]}  Nf4 {[%clk 0:00:24]} 46. f6 {[%clk 0:00:33]}  g6 {[%clk 0:00:21]} 47. Qc2 {[%clk 0:00:28]}  c4 {[%clk 0:00:17]} 48. Kf3 {[%clk 0:00:28]}  Nh5 {[%clk 0:00:14]} 49. Rg1 {[%clk 0:00:26]}  Ra8 {[%clk 0:00:13]} 50. Ra1 {[%clk 0:00:23]}  Qb6 {[%clk 0:00:12]} 51. Qd2 {[%clk 0:00:21]}  Qc5 {[%clk 0:00:11]} 52. Bd4 {[%clk 0:00:19]}  Qf8 {[%clk 0:00:10]} 53. a7 {[%clk 0:00:19]}  Rd8 {[%clk 0:00:10]} 54. Bc5 {[%clk 0:00:13]}  Qe8 {[%clk 0:00:08]} 55. Qxd8 {[%clk 0:00:13]}  Qxd8 {[%clk 0:00:08]} 56. a8=Q {[%clk 0:00:13]} 1-0


[Site "https://www.chess.com"]

[Event "Titled Tuesday Blitz March 01 Early 2022"]
[White "Ter-Sahakyan, Samvel"]
[Black "Hakemi, Arman"]
[WhiteFideId "13302531"]
[BlackFideId "22520805"]
[WhiteElo "2592"]
[BlackElo "2208"]
[Result "1/2-1/2"]
[Round "06"]
[TimeControl "180+1"]
[Date "2022.03.01"]
[WhiteClock "0:00:14"]
[BlackClock "0:00:27"]

1. e4 {[%clk 0:03:00]}  c5 {[%clk 0:02:58]} 2. Nf3 {[%clk 0:03:00]}  e6 {[%clk 0:02:58]} 3. g3 {[%clk 0:02:59]}  Nc6 {[%clk 0:02:57]} 4. Bg2 {[%clk 0:02:59]}  d5 {[%clk 0:02:44]} 5. exd5 {[%clk 0:02:59]}  exd5 {[%clk 0:02:43]} 6. O-O {[%clk 0:02:59]}  Nf6 {[%clk 0:02:41]} 7. d4 {[%clk 0:02:59]}  Be7 {[%clk 0:02:36]} 8. dxc5 {[%clk 0:02:59]}  O-O {[%clk 0:02:37]} 9. Be3 {[%clk 0:02:52]}  Ng4 {[%clk 0:02:35]} 10. Bd4 {[%clk 0:02:50]}  Nxd4 {[%clk 0:02:33]} 11. Nxd4 {[%clk 0:02:41]}  Bxc5 {[%clk 0:02:33]} 12. Nc3 {[%clk 0:02:33]}  Nf6 {[%clk 0:02:31]} 13. Nb3 {[%clk 0:02:30]}  Bb6 {[%clk 0:02:26]} 14. Nxd5 {[%clk 0:02:28]}  Nxd5 {[%clk 0:02:27]} 15. Qxd5 {[%clk 0:02:28]}  Qf6 {[%clk 0:02:28]} 16. a4 {[%clk 0:02:20]}  Be6 {[%clk 0:02:20]} 17. Qxb7 {[%clk 0:02:15]}  Bc4 {[%clk 0:02:20]} 18. a5 {[%clk 0:02:05]}  Bxf1 {[%clk 0:02:20]} 19. Rxf1 {[%clk 0:02:02]}  Rab8 {[%clk 0:02:20]} 20. Qf3 {[%clk 0:01:37]}  Bd8 {[%clk 0:02:18]} 21. Qe3 {[%clk 0:01:18]}  Qxb2 {[%clk 0:02:09]} 22. Qxa7 {[%clk 0:01:18]}  Bf6 {[%clk 0:02:07]} 23. Be4 {[%clk 0:01:14]}  Rb4 {[%clk 0:01:44]} 24. Bd3 {[%clk 0:01:01]}  Qc3 {[%clk 0:01:42]} 25. Qe3 {[%clk 0:00:53]}  Rd8 {[%clk 0:01:32]} 26. Rd1 {[%clk 0:00:53]}  g6 {[%clk 0:01:26]} 27. a6 {[%clk 0:00:52]}  Ra4 {[%clk 0:01:17]} 28. Qf3 {[%clk 0:00:46]}  Rxa6 {[%clk 0:01:14]} 29. Nd2 {[%clk 0:00:35]}  Ra1 {[%clk 0:01:06]} 30. Rxa1 {[%clk 0:00:35]}  Qxa1+ {[%clk 0:01:07]} 31. Kg2 {[%clk 0:00:35]}  Qd4 {[%clk 0:01:04]} 32. Ne4 {[%clk 0:00:34]}  Kg7 {[%clk 0:01:05]} 33. h4 {[%clk 0:00:29]}  h5 {[%clk 0:01:04]} 34. Qf4 {[%clk 0:00:22]}  Qe5 {[%clk 0:00:59]} 35. Qf3 {[%clk 0:00:22]}  Be7 {[%clk 0:00:55]} 36. Nd2 {[%clk 0:00:18]}  Bc5 {[%clk 0:00:53]} 37. Ne4 {[%clk 0:00:18]}  Ba7 {[%clk 0:00:48]} 38. Ng5 {[%clk 0:00:18]}  Rd7 {[%clk 0:00:45]} 39. Bc4 {[%clk 0:00:15]}  Qf6 {[%clk 0:00:45]} 40. Qxf6+ {[%clk 0:00:11]}  Kxf6 {[%clk 0:00:46]} 41. Bxf7 {[%clk 0:00:10]}  Rxf7 {[%clk 0:00:31]} 42. Nxf7 {[%clk 0:00:10]}  Kxf7 {[%clk 0:00:32]} 43. f3 {[%clk 0:00:10]}  Kf6 {[%clk 0:00:29]} 44. g4 {[%clk 0:00:10]}  hxg4 {[%clk 0:00:29]} 45. fxg4 {[%clk 0:00:11]}  Bd4 {[%clk 0:00:25]} 46. g5+ {[%clk 0:00:11]}  Kf5 {[%clk 0:00:21]} 47. h5 {[%clk 0:00:11]}  gxh5 {[%clk 0:00:22]} 48. g6 {[%clk 0:00:11]}  Kxg6 {[%clk 0:00:23]} 49. c4 {[%clk 0:00:12]}  Kg5 {[%clk 0:00:22]} 50. c5 {[%clk 0:00:12]}  Bxc5 {[%clk 0:00:23]} 51. Kh1 {[%clk 0:00:12]}  Kg4 {[%clk 0:00:24]} 52. Kg2 {[%clk 0:00:13]}  h4 {[%clk 0:00:24]} 53. Kh1 {[%clk 0:00:13]}  h3 {[%clk 0:00:25]} 54. Kh2 {[%clk 0:00:13]}  Kh4 {[%clk 0:00:26]} 55. Kh1 {[%clk 0:00:14]}  Kg3 {[%clk 0:00:27]} 1/2-1/2


[Site "https://www.chess.com"]

[Event "Titled Tuesday Blitz March 01 Early 2022"]
[White "Tymrakiewicz, Rafal"]
[Black "Horobetz, Graham"]
[WhiteFideId "1108832"]
[BlackFideId "2047322"]
[WhiteElo "2205"]
[BlackElo "2612"]
[Result "0-1"]
[Round "06"]
[TimeControl "180+1"]
[Date "2022.03.01"]
[WhiteClock "0:02:33"]
[BlackClock "0:01:09"]

1. e4 {[%clk 0:03:00]}  c5 {[%clk 0:03:00]} 2. c3 {[%clk 0:03:00]}  Nf6 {[%clk 0:02:59]} 3. e5 {[%clk 0:03:00]}  Nd5 {[%clk 0:03:00]} 4. Nf3 {[%clk 0:03:01]}  e6 {[%clk 0:02:57]} 5. d4 {[%clk 0:03:00]}  cxd4 {[%clk 0:02:57]} 6. cxd4 {[%clk 0:03:01]}  d6 {[%clk 0:02:56]} 7. a3 {[%clk 0:02:59]}  Nc6 {[%clk 0:02:56]} 8. Bd3 {[%clk 0:02:59]}  dxe5 {[%clk 0:02:52]} 9. dxe5 {[%clk 0:02:58]}  Be7 {[%clk 0:02:50]} 10. O-O {[%clk 0:02:58]}  O-O {[%clk 0:02:50]} 11. Qe2 {[%clk 0:02:58]}  b6 {[%clk 0:02:37]} 12. Rd1 {[%clk 0:02:57]}  Bb7 {[%clk 0:02:35]} 13. h4 {[%clk 0:02:45]}  g6 {[%clk 0:02:14]} 14. h5 {[%clk 0:02:44]}  Qc7 {[%clk 0:01:59]} 15. Bh6 {[%clk 0:02:39]}  Rfd8 {[%clk 0:01:58]} 16. Nbd2 {[%clk 0:02:39]}  Bf8 {[%clk 0:01:29]} 17. Bxf8 {[%clk 0:02:35]}  Nf4 {[%clk 0:01:23]} 18. Rac1 {[%clk 0:02:36]}  Nxe2+ {[%clk 0:01:18]} 19. Bxe2 {[%clk 0:02:37]}  Kxf8 {[%clk 0:01:15]} 20. Ne4 {[%clk 0:02:37]}  Rxd1+ {[%clk 0:01:14]} 21. Rxd1 {[%clk 0:02:37]}  Nxe5 {[%clk 0:01:12]} 22. Nfg5 {[%clk 0:02:35]}  Bxe4 {[%clk 0:01:11]} 23. Nxe4 {[%clk 0:02:34]}  Rd8 {[%clk 0:01:11]} 24. Re1 {[%clk 0:02:33]}  Kg7 {[%clk 0:01:09]} 0-1


[Site "https://www.chess.com"]